{"text_format":"2","workbook":"xlsx","n_sheets":1,"sheets":["Lista startowa"],"not_rendered":{"charts":0,"images":0,"macros":0,"external_links":0,"defined_names":0,"comments":0,"pivot_tables":0},"unopened":[],"bounds":{"document_bytes":16777216,"sheet_cells":100000,"run_cost":"one","rows_first":2000,"rows_last":500,"rows_between":2000,"halvings":0,"cell_chars":16384,"cell_head_chars":4096},"cells_cut":0,"cells_raw":0,"read":"whole","date_system":"1900"}

{"sheet":"Lista startowa","index":0,"n_rows":188,"n_cols":14,"rows_kept":188,"cut":false,"hidden":false,"merged":[[2,10,3,10],[4,10,5,10],[6,10,7,10],[8,10,9,10],[10,10,11,10],[12,10,13,10],[14,10,15,10],[16,10,17,10],[18,10,19,10],[20,10,21,10],[22,10,23,10],[24,10,25,10],[26,10,27,10],[28,10,29,10],[30,10,31,10],[32,10,33,10],[34,10,35,10],[36,10,37,10],[38,10,39,10],[40,10,41,10],[42,10,43,10],[44,10,45,10],[46,10,47,10],[48,10,49,10],[50,10,51,10],[52,10,53,10],[54,10,55,10],[56,10,57,10],[58,10,59,10],[60,10,61,10],[62,10,63,10],[64,10,65,10],[66,10,67,10],[68,10,69,10],[70,10,71,10],[72,10,73,10],[74,10,75,10],[76,10,77,10],[78,10,79,10],[80,10,81,10],[82,10,83,10],[84,10,85,10],[86,10,87,10],[88,10,89,10],[90,10,91,10],[92,10,93,10],[94,10,95,10],[96,10,97,10],[98,10,99,10],[100,10,101,10],[102,10,103,10],[104,10,105,10],[106,10,107,10],[108,10,109,10],[110,10,111,10],[112,10,113,10],[114,10,115,10],[116,10,117,10],[118,10,119,10],[120,10,121,10],[122,10,123,10],[124,10,125,10],[126,10,127,10],[128,10,129,10],[130,10,131,10],[132,10,133,10],[134,10,135,10],[136,10,137,10],[138,10,139,10],[140,10,141,10],[142,10,143,10],[144,10,145,10],[146,10,147,10],[148,10,149,10],[150,10,151,10],[152,10,153,10],[154,10,155,10],[156,10,157,10],[158,10,159,10],[160,10,161,10],[162,10,163,10],[164,10,165,10],[166,10,167,10],[168,10,169,10],[170,10,171,10],[182,10,183,10],[184,10,185,10],[186,10,187,10],[172,10,173,10],[174,10,175,10],[176,10,177,10],[178,10,179,10],[180,10,181,10]]}
[]
["Lp.","Nazwisko","Imię","Nazwisko","Imię","Mix/Tandem-indywidualne-sztafeta","Drużyna","Rok urodzenia","Nr biegu","Kolor toru"]
[1,"Ździebło","Marcin","Figuła","Agnieszka","MIX","SA PSP Kraków 3",null,{"$f":"K3","v":1},"NIEBIESKI",1]
[2,"Leśniakiewicz","Jurek","Kwaśnica","Karolina","MIX","Wadowicko-Izdebski MIX",null,{"$f":"K3","v":1},"czerwony"]
[3,"Jopek","Szymon","Druzgała","Edyta","MIX","Myślenicko-Pcimski MIX",null,{"$f":"K5","v":2},"NIEBIESKI",2]
[4,"Tomala","Zbigniew","Tomala","Magdalena","MIX","Tomala Team",null,{"$f":"K5","v":2},"czerwony"]
[5,"Pytel","Sławomir","Pytel","Tomasz","MM","Big Brother's Team",null,{"$f":"K7","v":3},"NIEBIESKI",3]
[6,"Stabl","Jiri","Stabl","Martin","MM","Czech Republik Team",null,{"$f":"K7","v":3},"czerwony"]
[7,"Strykowski","Krzysztof","Wiliński","Bartosz","MM","JRG Oborniki",null,{"$f":"K9","v":4},"NIEBIESKI",4]
[8,"Nowakowski","Piotr","Szuchan","Rafał","MM","JRG Koluszki",null,{"$f":"K9","v":4},"czerwony"]
[9,"Szychulski","Krzysztof","Wierzbicki","Maciej","MM","JRG 1 Bydgoszcz",null,{"$f":"K11","v":5},"NIEBIESKI",5]
[10,"Rybicki","Łukasz","Krawczyk","Marcin","MM","TFA Toruń Team 4",null,{"$f":"K11","v":5},"czerwony"]
[11,"Lewandowski","Tomasz","Górka","Michał","MM","JRG 3 Bydgoszcz",null,{"$f":"K13","v":6},"NIEBIESKI",6]
[12,"Dombrowicz","Wojciech","Grabowski","Jarosław","MM","TFA Toruń Team 3",null,{"$f":"K13","v":6},"czerwony"]
[13,"Kijo","Paweł","Malarczyk","Sebastian","MM","Big Faja Team",null,{"$f":"K15","v":7},"NIEBIESKI",7]
[14,"Kania","Marek","Wójtowicz","Paweł","MM","OSP Izdebnik",null,{"$f":"K15","v":7},"czerwony"]
[15,"Kotarski","Łukasz","Struszczyk","Krystian","MM","KP PSP Zgierz 1",null,8,"NIEBIESKI",8]
[16,"Barszczuk","Dawid","Moskała","Andrzej","MM","Wadowice 1",null,8,"czerwony"]
[17,"Piwowarski","Dawid","Tomczyk","Tomasz","MM","TFA Team Szczecin 2",null,9,"NIEBIESKI",9]
[18,"Bilski","Dariusz","Jurkiewicz","Mateusz","MM","206 Team",null,9,"czerwony"]
[19,"Gąska","Michał","Jakubiak","Sebastian","MM","SA PSP Kraków 2",null,{"$f":"K21","v":10},"NIEBIESKI",10]
[20,"Stegnicki","Robert","Nagajski","Mateusz","MM","TFA Toruń Team 1",null,{"$f":"K21","v":10},"czerwony"]
[21,"Góralczyk","Dawid","Włodarczyk","Paweł","MM","Black Horses From Poland 2",null,11,"NIEBIESKI",11]
[22,"Bereza","Rafał","Kucharski","Dawid","MM","Team Krasnystaw",null,11,"czerwony"]
[23,"Krawczyk","Krzysztof","Gołębiewski","Tomasz","MM","TFA Team Szczecin 1",null,12,"NIEBIESKI",12]
[24,"Hess","Paweł","Białas","Jarosław","MM","Black Horses From Poland 1",null,12,"czerwony"]
[25,"Królikowski","Michał","Błoch","Łukasz","MM","JRG 10 Łódź 1",null,{"$f":"K27","v":13},"NIEBIESKI",13]
[26,"Zdziebło","Marcin","Matuszny","Rafał","MM","SA PSP Kraków 1",null,{"$f":"K27","v":13},"czerwony"]
[27,"Cosić","Moamer","Tekovćić","Mina","MM","FCC Slovenia",null,14,"NIEBIESKI",14]
[28,"Rybavsky","Daniel","Ficik","Adrian","MM","TFA Team Slovakia",null,14,"czerwony"]
[29,"Kaczmarek","Rafał","Sobierajski","Ireneusz","MM","KP PSP Zgierz 2",null,15,"NIEBIESKI",15]
[30,"brak","brak","brak","brak","MM","brak","brak",15,"czerwony"]
[31,"Bereza","Rafał",null,null,"indywidualne","SA PSP Kraków",1991,{"$f":"K33","v":16},"NIEBIESKI",16,"1991-04-12",null,{"$f":"YEAR(L33)","v":1991}]
[32,"Kucharski","Dawid",null,null,"indywidualne","Otwock",1990,{"$f":"K33","v":16},"czerwony",null,"1990-01-06",null,1990]
[33,"Matuszny","Rafał",null,null,"indywidualne","SA PSP Kraków",1992,17,"NIEBIESKI",17,"1992-09-03",null,1992]
[34,"Pytel","Sławomir",null,null,"indywidualne","sztafeta-JRG10 III",1970,17,"czerwony",null,"1970-09-14",null,1970]
[35,"Wiśniewski","Arnold",null,null,"indywidualne","JRG 10",1974,18,"NIEBIESKI",18,"1974-07-28",null,1974]
[36,"Góralczyk","Daniel",null,null,"indywidualne","Black Horses From Poland",1987,18,"czerwony",null,"1987-10-19",null,1987]
[37,"Banaszek","Marcin",null,null,"indywidualne","Tylko indywidualnie",1988,{"$f":"K39","v":19},"NIEBIESKI",19,"1988-04-02",null,1988]
[38,"Spławski","Marcin",null,null,"indywidualne","Tylko indywidualnie",1978,{"$f":"K39","v":19},"czerwony",null,"1978-08-18",null,1978]
[39,"Kuligowski","Konrad",null,null,"indywidualne","Team Choszczno",1982,20,"NIEBIESKI",20,"1982-03-18",null,1982]
[40,"Wójtowicz","Paweł",null,null,"indywidualne","OSP IZDEBNIK",1991,20,"czerwony",null,"1991-06-25",null,1991]
[41,"Gwadera","Radosław",null,null,"indywidualne","Team Choszczno",1975,21,"NIEBIESKI",21,"1975-04-04",null,1975]
[42,"Burza","Hubert",null,null,"indywidualne","Tylko indywidualnie",1989,21,"czerwony",null,"1989-07-21",null,1989]
[43,"Banasiak","Zbigniew",null,null,"indywidualne","Team Choszczno",1986,{"$f":"K45","v":22},"NIEBIESKI",22,"1986-12-05",null,1986]
[44,"Kur","Kamil",null,null,"indywidualne","Tylko indywidualnie",1985,{"$f":"K45","v":22},"czerwony",null,"1985-06-29",null,1985]
[45,"Drobniak","Łukasz",null,null,"indywidualne","Team Choszczno",1989,23,"NIEBIESKI",23,"1989-02-22",null,1989]
[46,"Fedak","Tomasz",null,null,"indywidualne","Szczury Śródmieścia",1989,23,"czerwony",null,"1989-06-12",null,1989]
[47,"Madej","Marek",null,null,"indywidualne","OSP IZDEBNIK",1992,24,"NIEBIESKI",24,"1992-08-08",null,1992]
[48,"Gąska","Michał",null,null,"indywidualne","SA PSP Kraków",1989,24,"czerwony",null,"1989-02-11",null,1989]
[49,"Kania","Marek",null,null,"indywidualne","OSP IZDEBNIK",1992,{"$f":"K51","v":25},"NIEBIESKI",25,"1992-11-16",null,1992]
[50,"Jopek","Szymon",null,null,"indywidualne","TFA TEAM POŁUDNIE",1988,{"$f":"K51","v":25},"czerwony",null,"1988-03-13",null,1988]
[51,"Pytel","Tomasz",null,null,"indywidualne","sztafeta-JRG10 III",1976,26,"NIEBIESKI",26,"1976-07-30",null,1976]
[52,"Godzik","Rafał",null,null,"indywidualne","OSP IZDEBNIK",1992,26,"czerwony",null,"1992-05-11",null,1992]
[53,"Tomala","Zbigniew",null,null,"indywidualne","Tylko indywidualnie",1982,27,"NIEBIESKI",27,"1982-08-05",null,1982]
[54,"Wylegała","Krzysztof",null,null,"indywidualne","nie dotyczy",1988,27,"czerwony",null,"1988-01-16",null,1988]
[55,"Perliński","Maciej",null,null,"indywidualne","Tylko indywidualnie",1983,{"$f":"K57","v":28},"NIEBIESKI",28,"1983-09-06",null,1983]
[56,"Pacholski","Rafał",null,null,"indywidualne","nie dotyczy",1979,{"$f":"K57","v":28},"czerwony",null,"1979-04-21",null,1979]
[57,"Ociepa","Michał",null,null,"indywidualne","nie dotyczy",1988,29,"NIEBIESKI",29,"1988-04-02",null,1988]
[58,"Rynkiewicz","Marcin",null,null,"indywidualne","Ronin Firefighters",1984,29,"czerwony",null,"1984-10-21",null,1984]
[59,"Nowicki","Michał",null,null,"indywidualne","Szczury Śródmieścia",1979,30,"NIEBIESKI",30,"1979-03-20",null,1979]
[60,"Krepsztul","Krzysztof",null,null,"indywidualne","Ronin Firefighters",1985,30,"czerwony",null,"1985-05-28",null,1985]
[61,"Gralak","Mariusz",null,null,"indywidualne","Ronin Firefighters",1985,{"$f":"K63","v":31},"NIEBIESKI",31,"1985-04-06",null,1985]
[62,"Czupryński","Łukasz",null,null,"indywidualne","Szczury Śródmieścia",1986,{"$f":"K63","v":31},"czerwony",null,"1986-03-15",null,1986]
[63,"Miksa","Radosław",null,null,"indywidualne","Ronin Firefighters",1981,32,"NIEBIESKI",32,"1981-03-23",null,1981]
[64,"Ortman","Stanisław",null,null,"indywidualne","nie dotyczy",1958,32,"czerwony",null,"1958-10-11",null,1958]
[65,"Kisiel","Szymon",null,null,"indywidualne","sztafeta JRG10 II",1989,33,"NIEBIESKI",33,"1989-02-03",null,1989]
[66,"Skirgajło","Adrian",null,null,"indywidualne","White Tigers FCC",1978,33,"czerwony",null,"1978-06-29",null,1978]
[67,"Štábl","Jiří",null,null,"indywidualne","TEAM CZECH REPUBLIC",1986,{"$f":"K69","v":34},"NIEBIESKI",34,"1986-02-26",null,1986]
[68,"Bytner","Leszek",null,null,"indywidualne","White Tigers FCC",1979,{"$f":"K69","v":34},"czerwony",null,"1979-12-25",null,1979]
[69,"Štábl","Martin",null,null,"indywidualne","TEAM CZECH REPUBLIC",1986,35,"NIEBIESKI",35,"1986-02-26",null,1986]
[70,"Chiniewicz","Adam",null,null,"indywidualne","White Tigers FCC",1988,35,"czerwony",null,"1988-12-24",null,1988]
[71,"Hubáček","Zdenek",null,null,"indywidualne","TEAM CZECH REPUBLIC",1968,36,"NIEBIESKI",36,"1968-08-05",null,1968]
[72,"Przymusiński","Damian",null,null,"indywidualne","JRG OBORNIKI",1986,36,"czerwony",null,"1986-01-14",null,1986]
[73,"Čosič","Moamer",null,null,"indywidualne","TEAM SLOVENIA",1982,{"$f":"K75","v":37},"NIEBIESKI",37,"1982-05-08",null,1982]
[74,"Burda","Michał",null,null,"indywidualne","JRG OBORNIKI",1984,{"$f":"K75","v":37},"czerwony",null,"1984-03-29",null,1984]
[75,"Grabowski","Jarosław",null,null,"indywidualne","TFA TEAM TORUŃ 2",1990,{"$f":"K77","v":38},"NIEBIESKI",38,"1990-03-29",null,1990]
[76,"Sobański","Leszek",null,null,"indywidualne","JRG OBORNIKI",1981,{"$f":"K77","v":38},"czerwony",null,"1981-12-25",null,1981]
[77,"Rus","Jacek",null,null,"indywidualne","KW PSP Łódź",1982,{"$f":"K79","v":39},"NIEBIESKI",39,"1982-03-09",null,1982]
[78,"Strykowski","Krzysztof",null,null,"indywidualne","JRG OBORNIKI",1981,{"$f":"K79","v":39},"czerwony",null,"1981-09-01",null,1981]
[79,"Głowacki","Dominik",null,null,"indywidualne","KW PSP Łódź",1979,{"$f":"K81","v":40},"NIEBIESKI",40,"1979-12-26",null,1979]
[80,"Wiliński","Bartosz",null,null,"indywidualne","JRG OBORNIKI",1981,{"$f":"K81","v":40},"czerwony",null,"1981-12-19",null,1981]
[81,"Guziński","Marcin",null,null,"indywidualne","SZTAFETA jrg10 II",1975,41,"NIEBIESKI",41,"1975-03-18",null,1975]
[82,"Witczak","Kamil",null,null,"indywidualne","KP PSP ZGIERZ",1988,41,"czerwony",null,"1988-07-15",null,1988]
[83,"Piwowarski","Dawid",null,null,"indywidualne","KM PSP Szczecin",1988,42,"NIEBIESKI",42,"1988-07-23",null,1988]
[84,"Struszczyk","Krystian",null,null,"indywidualne","KP PSP ZGIERZ",1979,42,"czerwony",null,"1979-07-07",null,1979]
[85,"Kaczmarek","Rafal",null,null,"indywidualne","KP PSP ZGIERZ",1984,{"$f":"K87","v":43},"NIEBIESKI",43,"1984-09-29",null,1984]
[86,"Mrówczyński","Radosław",null,null,"indywidualne","nie dotyczy",1980,{"$f":"K87","v":43},"czerwony",null,"1980-01-06",null,1980]
[87,"Sobierajski","Ireneusz",null,null,"indywidualne","nie dotyczy",1982,44,"NIEBIESKI",44,"1982-09-19",null,1982]
[88,"Nowakowski","Piotr",null,null,"indywidualne","JRG Koluszki",1987,44,"czerwony",null,"1987-02-11",null,1987]
[89,"Ilski","Piotr",null,null,"indywidualne","ZGIERZ",1983,45,"NIEBIESKI",45,"1983-05-19",null,1983]
[90,"Gawarzyński","Krzysztof",null,null,"indywidualne","Szczury Śródmieścia",1985,45,"czerwony",null,"1985-02-18",null,1985]
[91,"Włodarski","Paweł",null,null,"indywidualne","Black Horses From Poland",1990,{"$f":"K93","v":46},"NIEBIESKI",46,"1990-02-19",null,1990]
[92,"Lasota","Mariusz",null,null,"indywidualne","Ronin Firefighters",1971,{"$f":"K93","v":46},"czerwony",null,"1971-09-02",null,1971]
[93,"Bilski","Dariusz",null,null,"indywidualne","K-09",1989,47,"NIEBIESKI",47,"1989-01-19",null,1989]
[94,"Agier","Krzysztof",null,null,"indywidualne","nie dotyczy",1987,47,"czerwony",null,"1987-03-09",null,1987]
[95,"Suchan","Rafał",null,null,"indywidualne","JRG Koluszki",1977,48,"NIEBIESKI",48,"1977-03-20",null,{"$f":"YEAR(L97)","v":1977}]
[96,"Kłudziak","Damian",null,null,"indywidualne","nie dotyczy",1991,48,"czerwony",null,"1991-01-13",null,1991]
[97,"Janiak","Tomasz",null,null,"indywidualne","JRG-10 Łódź 1",1987,{"$f":"K99","v":49},"NIEBIESKI",49,"1987-12-12",null,1987]
[98,"Jurkiewicz","Mateusz",null,null,"indywidualne","K-09",1990,{"$f":"K99","v":49},"czerwony",null,"1990-12-28",null,1990]
[99,"Holec","Martin",null,null,"indywidualne","nie dotyczy",1993,50,"NIEBIESKI",50,"1993-06-08",null,1993]
[100,"Kaźmierczak","Grzegorz",null,null,"indywidualne","K-09",1990,50,"czerwony",null,"1990-06-08",null,1990]
[101,"Malarczyk","Sebastian",null,null,"indywidualne","sztafeta-JRG10 III",1978,51,"NIEBIESKI",51,"1978-11-07",null,1978]
[102,"Skorupka","Dawid",null,null,"indywidualne","nie dotyczy",2013,51,"czerwony",null,"2013-11-20",null,2013]
[103,"Czerwiec","Michał",null,null,"indywidualne","nie dotyczy",1984,{"$f":"K105","v":52},"NIEBIESKI",52,"1984-11-04",null,1984]
[104,"Tejza","Paweł",null,null,"indywidualne","TFA TEAM TORUŃ 1",1986,{"$f":"K105","v":52},"czerwony",null,"1986-02-19",null,1986]
[105,"Nogajski","Mateusz",null,null,"indywidualne","TFA TEAM TORUŃ 1",1989,53,"NIEBIESKI",53,"1989-10-16",null,1989]
[106,"Szychulski","Krzysztof",null,null,"indywidualne","KING Bydgoszcz",1988,53,"czerwony",null,"1988-12-24",null,1988]
[107,"Dombrowicz","Wojciech",null,null,"indywidualne","TFA TEAM TORUŃ 2",1982,54,"NIEBIESKI",54,"1982-07-07",null,1982]
[108,"Wierzbicki","Maciej",null,null,"indywidualne","KING Bydgoszcz",1973,54,"czerwony",null,"1973-12-19",null,1973]
[109,"Rybicki","Łukasz",null,null,"indywidualne","TFA TEAM TORUŃ 2",1982,{"$f":"K111","v":55},"NIEBIESKI",55,"1982-03-29",null,1982]
[110,"Nawrocki","Radosław",null,null,"indywidualne","KING Bydgoszcz",1980,{"$f":"K111","v":55},"czerwony",null,"1980-05-24",null,1980]
[111,"Krawczyk","Marcin",null,null,"indywidualne","TFA TEAM TORUŃ 2",1987,56,"NIEBIESKI",56,"1987-12-13",null,1987]
[112,"Lewadowski","Tomasz",null,null,"indywidualne","KING Bydgoszcz",1982,56,"czerwony",null,"1982-05-25",null,1982]
[113,"Moskała","Andrzej",null,null,"indywidualne","Wadowice",1990,57,"NIEBIESKI",57,"1990-04-02",null,1990]
[114,"Górka","Michał",null,null,"indywidualne","KING Bydgoszcz",1984,57,"czerwony",null,"1984-07-13",null,1984]
[115,"Janicki","Michał",null,null,"indywidualne","Wadowice",1990,{"$f":"K117","v":58},"NIEBIESKI",58,"1990-04-01",null,1990]
[116,"Jabłoński","Adrian",null,null,"indywidualne","BEST of JRG 6 ;)",1991,{"$f":"K117","v":58},"czerwony",null,"1991-01-02",null,1991]
[117,"Zsigo","Josef",null,null,"indywidualne","TFA Team SLOVAKIA",1977,59,"NIEBIESKI",59,"1977-03-03",null,1977]
[118,"Poznański","Krzysztof",null,null,"indywidualne","nie dotyczy",1982,59,"czerwony",null,"1982-01-20",null,1982]
[119,"Musiał","Konrad",null,null,"indywidualne","BEST of JRG 6 ;)",1987,60,"NIEBIESKI",60,"1987-05-20",null,1987]
[120,"Krawczyk","Krzysztof",null,null,"indywidualne","BEST of JRG 6 ;)",1981,60,"czerwony",null,"1972-02-28",null,1972]
[121,"Ploch","Roman",null,null,"indywidualne","BEST of JRG 6 ;)",1991,{"$f":"K123","v":61},"NIEBIESKI",61,"1991-08-09",null,1991]
[122,"Mazurkiewicz","Łukasz",null,null,"indywidualne","KM PSP Szczecin",1984,{"$f":"K123","v":61},"czerwony",null,"1984-03-09",null,1984]
[123,"Książczyk","Przemysław",null,null,"indywidualne","nie dotyczy",1985,62,"NIEBIESKI",62,"1985-02-04",null,1985]
[124,"Głowacki","Arkadiusz",null,null,"indywidualne","nie dotyczy",1985,62,"czerwony",null,"1985-01-08",null,1985]
[125,"Tomczyk","Tomasz",null,null,"indywidualne","KM PSP Szczecin",1983,63,"NIEBIESKI",63,"1983-10-19",null,1983]
[126,"Brists","Peter",null,null,"indywidualne","TFA Team SLOVAKIA",1992,63,"czerwony",null,"1992-04-14",null,1992]
[127,"Rybavsky","Daniel",null,null,"indywidualne","TFA Team SLOVAKIA",1984,{"$f":"K129","v":64},"NIEBIESKI",64,"1984-10-21",null,1984]
[128,"Olczyk","Krzysztof",null,null,"indywidualne","BEST of JRG 6 ;)",1987,{"$f":"K129","v":64},"czerwony",null,"1987-10-29",null,1987]
[129,"Tomovic","Vlastimil",null,null,"indywidualne","TFA Team SLOVAKIA",1967,65,"NIEBIESKI",65,"1967-01-18",null,1967]
[130,"Jóźwicki","Blażej",null,null,"indywidualne","TFA TEAM TORUŃ 2",1988,65,"czerwony",null,"1988-09-08",null,1988]
[131,"Pustuła","Mariusz",null,null,"indywidualne","nie startuje-kontuzja",1985,66,"NIEBIESKI",66,"1985-10-27",null,1985]
[132,"Maciejewski","Przemysław",null,null,"indywidualne","nie dotyczy",1979,66,"czerwony",null,"1979-08-06",null,1979]
[133,"Smażek","Dawid",null,null,"indywidualne","KW PSP Łódź",1984,{"$f":"K135","v":67},"NIEBIESKI",67,"1984-07-11",null,1984]
[134,"Talarkiewicz","Konrad",null,null,"indywidualne","BEST of JRG 6 ;)",1987,{"$f":"K135","v":67},"czerwony",null,"brak",null,{"$error":"#VALUE!"}]
[135,"Figuła","Agnieszka",null,null,"indywidualne","nie dotyczy",1985,68,"NIEBIESKI",68,"1991-06-23",null,1991]
[136,"Kwaśnica","Karolina",null,null,"indywidualne","OSP IZDEBNIK",1991,68,"czerwony",null,"1985-02-11",null,1985]
[137,"Druzgała","Edyta",null,null,"indywidualne","nie dotyczy",1988,69,"NIEBIESKI",69,"1988-03-12",null,1988]
[138,"Tomala","Magdalena",null,null,"indywidualne","nie dotyczy",1983,69,"czerwony",null,"1983-08-30",null,1983]
[139,"Gołębiewski","Tomasz",null,null,"indywidualne","KM PSP Szczecin",1982,{"$f":"K141","v":70},"NIEBIESKI",70,"1982-03-03",null,1982]
[140,"Barszczak","Dawid",null,null,"indywidualne","Wadowice",1988,{"$f":"K141","v":70},"czerwony",null,"1988-04-18",null,1988]
[141,"Woźnica","Paweł",null,null,"indywidualne","Wadowice",1990,{"$f":"K143","v":71},"NIEBIESKI",71,"1990-08-18",null,1990]
[142,"Tekavčič","Miha",null,null,"indywidualne","TEAM SLOVENIA",1989,{"$f":"K143","v":71},"czerwony",null,"1989-06-23",null,1989]
[143,"Leśniakiewicz","Jerzy",null,null,"indywidualne","Wadowice",1974,{"$f":"K145","v":72},"NIEBIESKI",72,"1974-11-16",null,1974]
[144,"Ficik","Adrian",null,null,"indywidualne","TFA Team SLOVAKIA",1977,{"$f":"K145","v":72},"czerwony",null,"1977-07-20",null,1977]
[145,"Stegnicki","Robert",null,null,"indywidualne","TFA TEAM TORUŃ 1",1979,{"$f":"K147","v":73},"NIEBIESKI",73,"1979-12-06",null,1979]
[146,"Kijo","Paweł",null,null,"indywidualne","JRG-10 Łódź 1",1980,{"$f":"K147","v":73},"czerwony",null,"1980-05-22",null,1980]
[147,"Gazdecki","Dawid",null,null,"indywidualne","Szczury Śródmieścia",1981,74,"NIEBIESKI",74,"1981-09-16",null,1981]
[148,"Zakierski","Arkadiusz",null,null,"indywidualne","TFA TEAM TORUŃ 1",1980,74,"czerwony",null,"1980-01-19",null,1980]
[149,"Jakubiak","Sebastian",null,null,"indywidualne","SA PSP Kraków",1989,75,"NIEBIESKI",75,"1989-02-10",null,1989]
[150,"Błoch","Łukasz",null,null,"indywidualne","JRG-10 Łódź 1",1983,75,"czerwony",null,"1983-07-02",null,1983]
[151,"Białas","Jarosław",null,null,"indywidualne","Black Horses From Poland",1983,{"$f":"K153","v":76},"NIEBIESKI",76,"1983-02-23",null,1983]
[152,"Królikowski","Michał",null,null,"indywidualne","JRG10",1982,{"$f":"K153","v":76},"czerwony",null,"1982-10-31",null,1982]
[153,"Garbicz","Marek",null,null,"indywidualne","Team Choszczno",1968,77,"NIEBIESKI",77,"1968-10-13",null,1968]
[154,"Miciak","Zbigniew",null,null,"indywidualne","Black Horses From Poland",1959,77,"czerwony",null,"1959-05-05",null,1959]
[155,"Zdziebło","Marcin",null,null,"indywidualne","SA PSP Kraków",1978,78,"NIEBIESKI",78,"1978-06-10",null,1978]
[156,"Kotarski","Łukasz",null,null,"indywidualne","KP PSP ZGIERZ",1986,78,"czerwony",null,"1986-05-18",null,1986]
[157,"Hess","Paweł",null,null,"indywidualne","Black Horses From Poland",1987,{"$f":"K159","v":79},"NIEBIESKI",79,"1987-06-20",null,1987]
[158,"Krawczyk","Krzysztof",null,null,"indywidualne","KM PSP Szczecin",1972,{"$f":"K159","v":79},"czerwony",null,"1981-04-08",null,1981]
[159,{"$nulls":4},"sztafeta","SA PSP Kraków",null,80,"NIEBIESKI",80]
[160,{"$nulls":4},"sztafeta","TFA TEAM TORUŃ 2",null,80,"czerwony"]
[161,{"$nulls":4},"sztafeta","JRG 10 Łódź 1",null,81,"NIEBIESKI",81]
[162,{"$nulls":4},"sztafeta","JRG Koluszki",null,81,"czerwony"]
[163,{"$nulls":4},"sztafeta","JRG OBORNIKI",null,{"$f":"K165","v":82},"NIEBIESKI",82]
[164,{"$nulls":4},"sztafeta","JRG10",null,{"$f":"K165","v":82},"czerwony"]
[165,{"$nulls":4},"sztafeta","JRG 10 Łódź 2",null,83,"NIEBIESKI",83]
[166,{"$nulls":4},"sztafeta","K-09",null,83,"czerwony"]
[167,{"$nulls":4},"sztafeta","KING Bydgoszcz",null,84,"NIEBIESKI",84]
[168,{"$nulls":4},"sztafeta","KM PSP Szczecin",null,84,"czerwony"]
[169,{"$nulls":4},"sztafeta","KP PSP ZGIERZ",null,{"$f":"K171","v":85},"NIEBIESKI",85]
[170,{"$nulls":4},"sztafeta","KW PSP Łódź",null,{"$f":"K171","v":85},"czerwony"]
[171,{"$nulls":4},"sztafeta","OSP IZDEBNIK",null,86,"NIEBIESKI",86]
[172,{"$nulls":4},"sztafeta","Otwock",null,86,"czerwony"]
[173,{"$nulls":4},"sztafeta","Ronin Firefighters",null,87,"NIEBIESKI",87]
[174,{"$nulls":4},"sztafeta","Szczury Śródmieścia",null,87,"czerwony"]
[175,{"$nulls":4},"sztafeta","JRG 10 Łódź 3",null,{"$f":"K177","v":88},"NIEBIESKI",88]
[176,{"$nulls":4},"sztafeta","Team Choszczno",null,{"$f":"K177","v":88},"czerwony"]
[177,{"$nulls":4},"sztafeta","TEAM CZECH REPUBLIC",null,89,"NIEBIESKI",89]
[178,{"$nulls":4},"sztafeta","TEAM SLOVENIA",null,89,"czerwony"]
[179,{"$nulls":4},"sztafeta","TFA TEAM POŁUDNIE",null,90,"NIEBIESKI",90]
[180,{"$nulls":4},"sztafeta","TFA Team SLOVAKIA",null,90,"czerwony"]
[181,{"$nulls":4},"sztafeta","TFA TEAM TORUŃ 1",null,{"$f":"K183","v":91},"NIEBIESKI",91]
[182,{"$nulls":4},"sztafeta","Wadowice",null,{"$f":"K183","v":91},"czerwony"]
[183,{"$nulls":4},"sztafeta","BEST of JRG 6 ;)",null,92,"NIEBIESKI",92]
[184,{"$nulls":4},"sztafeta","White Tigers FCC",null,92,"czerwony"]
[185,{"$nulls":4},"sztafeta","Black Horses From Poland",null,93,"NIEBIESKI",93]
[{"$nulls":5},"sztafeta",null,null,93,"czerwony"]